Cogmind - Beta 13 @@@ ROGUE MODE // 2024.04.08 @ 19:03:01 Player: Zaz Result: Destroyed by as-44878 with Assembled Heavy Rifle Performance ------------- Evolutions (0) 0 Regions Visited (2) 400 Robots Destroyed (20) 100 Value Destroyed (313) 313 Prototype IDs (0) 0 Alien Tech Used (0) 0 Bonus (-111) -111 TOTAL SCORE: 702 Bonus ------- Friendly Fire -111 Cogmind --------- Core Integrity 0/250 Matter 120/300 Energy 69/125 System Corruption 1% Temperature Cool (49) Movement Treading (240) Ox1 Location -10/Mines Parts ------- > --- POWER (1) -------- Light Ion Engine > --- PROPULSION (2) --- Light Treads > --- UTILITY (2) ------ Large Storage Unit > --- WEAPON (2) ------- Medium Laser Grenade Launcher > --- INVENTORY (15) --- Aluminum Leg Wheel Small Storage Unit High-capacity Matter Pod (2) Structural Scanner Sensor Array Medium Laser Light Assault Rifle Light Assault Rifle Light Assault Rifle Mining Laser Peak State ------------ > --- POWER ------------ Ion Engine > --- PROPULSION ------- Wheel Wheel > --- UTILITY ---------- Improved Heat Sink Large Storage Unit > --- WEAPON ----------- Medium Laser Particle Gun > --- INVENTORY -------- Light Ion Engine Light Treads Light Treads Aluminum Leg Wheel Small Storage Unit High-capacity Matter Pod Structural Scanner Sensor Array Medium Laser Light Assault Rifle Light Assault Rifle Light Assault Rifle Grenade Launcher Mining Laser [Rating: 11] Favorites ----------- Power Ion Engine Engine Ion Engine Propulsion Wheel Treads Light Treads Leg Aluminum Leg Wheel Wheel Utility Large Storage Unit Device Heat Sink Storage Large Storage Unit Weapon Medium Laser Energy Gun Medium Laser Launcher Grenade Launcher Build | -11 -10 -10 ------- Run | Yrd Mat Min Slots Evolved . | . . . Power . | . . . Propulsion . | . . . Utility . | . . . Weapon . | . . . Parts Attached 25 | 6 9 10 Power 2 | 1 . 1 Engine 2 | 1 . 1 Core . | . . . Reactor . | . . . Propulsion 8 | 2 4 2 Treads 3 | . 1 2 Leg 2 | 2 . . Wheel 3 | . 3 . Hover . | . . . Flight . | . . . Utility 6 | 1 4 1 Device 4 | . 3 1 Storage 2 | 1 1 . Processor . | . . . Hackware . | . . . Protection . | . . . Artifact . | . . . Weapon 9 | 2 1 6 Energy Gun 6 | 2 . 4 Energy Cannon . | . . . Ballistic Gun . | . . . Ballistic Cannon . | . . . Launcher 3 | . 1 2 Special Weapon . | . . . Impact Weapon . | . . . Slashing Weapon . | . . . Piercing Weapon . | . . . Special Melee Weapon . | . . . Unidentified Prototypes . | . . . Parts Lost 6 | . . 6 Power 1 | . . 1 Propulsion 3 | . . 3 Utility 1 | . . 1 Weapon 1 | . . 1 Highest Loss Streak 6 | . . 6 To Critical Strikes . | . . . Average Slot Usage (%) 99 | . 99 93 Engine 13 | . 14 10 Treads 2 | . 1 9 Wheel 25 | . 26 18 Device 13 | . 13 10 Storage 14 | . 14 14 Energy Gun 27 | . 28 21 Naked Turns . | . . . Heaviest Build 32 | 14 31 32 Greatest Support 40 | 20 20 40 Greatest Overweight (x) 2 | 1 2 1 Average Overweight (x) . | . 1 . Largest Inventory Capacity 15 | 8 15 15 Average Capacity 14 | 6 14 15 Most Carried 15 | 7 15 15 Average Carried 10 | 4 11 13 Final Capacity 15 | 8 15 15 Final Carried 15 | 6 15 11 Class Distribution -------------------- 100% | Mutant Dominant Class ---------------- Mutant | -10/Materials Mutant | -10/Mines Resources | -11 -10 -10 ----------- Run | Yrd Mat Min Matter Collected 452 | 226 164 62 Remotely . | . . . Salvage Created 621 | . 535 86 Parts 29 | . 25 4 Haulers Intercepted 2 | . 2 . Recyclers Shooed 3 | . 3 . Parts Field Recycled . | . . . Retrieved Matter . | . . . Parts Self-Destructed . | . . . Prevented . | . . . Kills | -11 -10 -10 ------- Run | Yrd Mat Min Combat Hostiles Destroyed 27 | . 11 16 Guns 11 | . 11 . AOE 16 | . . 16 Classes Destroyed 9 | . 6 3 Tunneler 1 | . . 1 Hauler 2 | . 2 . Recycler 2 | . 2 . Operator 1 | . 1 . Watcher 1 | . 1 . Swarmer 9 | . 9 . Grunt 3 | . 2 1 Demolisher 1 | . . 1 Assembled 14 | . . 14 Best Kill Streak 14 | . 5 14 Combat Bots Only 14 | . 4 14 Max Kills in Single Turn 3 | . 1 3 Gunslinging . | . . . Exploded 3 | . . 3 Melee . | . . . Uniques/NPCs Destroyed . | . . . Combat | -11 -10 -10 -------- Run | Yrd Mat Min Hostile Shots Fired 80 | . 38 42 Missed 20 | . 14 6 Damage Taken 1004 | . 205 799 Core 251 | . 78 173 Absorbed by Shields . | . . . Core Remaining (%) 100 | 100 . . Volleys Fired 62 | . 41 21 Largest 2 | . 2 2 Hottest 100 | . 100 100 Shots Fired 111 | . 83 28 Gun 95 | . 83 12 Cannon . | . . . Launcher 16 | . . 16 Special . | . . . Kinetic . | . . . Thermal 95 | . 83 12 Explosive 16 | . . 16 Electromagnetic . | . . . Robot Hit Streak 8 | . 8 8 Robot Miss Streak 7 | . 2 7 Penetration Max . | . . . Secondary Targets 1 | . 1 . Max Gunslinging Chain 1 | . 1 . Shots Hit Robots 66 | . 58 8 Core Hits 69 | . 25 44 Critical Kills . | . . . Critical Parts Destroyed . | . . . Critical Strikes 7 | . 6 1 Burn 7 | . 6 1 Melee Attacks . | . . . Impact . | . . . Slashing . | . . . Piercing . | . . . Sneak Attacks . | . . . Combat Hostiles . | . . . Follow-up Attacks . | . . . Damage Inflicted 1937 | . 724 1213 Guns 774 | . 724 50 Cannons . | . . . Explosions 1163 | . . 1163 Melee . | . . . Ramming . | . . . Kinetic . | . . . Thermal 774 | . 724 50 Explosive 1163 | . . 1163 Electromagnetic . | . . . Impact . | . . . Slashing . | . . . Piercing . | . . . Highest Corruption 1 | . 1 1 Average Corruption 1 | . 1 1 Corruption Purged . | . . . Corruption Blocked . | . . . Effects 4 | . 4 . Message Errors 1 | . 1 . Heat Flow Errors 1 | . 1 . Data Loss (minor) 1 | . 1 . Misfires 1 | . 1 . Overload Shots . | . . . Overflow Damage 6 | . . 6 Projectiles . | . . . Explosions 6 | . . 6 Melee . | . . . Knockbacks . | . . . Impact . | . . . Kinetic . | . . . Secondary . | . . . Self-Inflicted Damage . | . . . Shots . | . . . Rammed . | . . . Targets Rammed . | . . . Kicked . | . . . Crushed . | . . . Highest Temperature 147 | . 147 117 Average Temperature 34 | . 31 58 Received Heat Transfer 69 | . 36 33 Siege Activations . | . . . Robots Corrupted . | . . . Combat Hostiles . | . . . Parts Fried . | . . . Impact Corruptions . | . . . Robots Melted . | . . . Combat Hostiles . | . . . Parts Melted 5 | . 5 . Heat Transferred 2812 | . 2590 222 Parts Sabotaged . | . . . Parts Stolen . | . . . Parts Stripped . | . . . Power Chain Reactions . | . . . Alert | -11 -10 -10 ------- Run | Yrd Mat Min Peak Influence 293 | . 293 109 Initial 22 | . . 22 Average 124 | . 142 72 Maximum Alert Level 1 | . 1 . Low Security (%) 69 | 100 62 100 Level 1 30 | . 37 . Level 2 . | . . . Level 3 . | . . . Level 4 . | . . . Level 5 . | . . . High Security . | . . . Max Security . | . . . Squads Dispatched 2 | . 2 . Investigation 1 | . 1 . Extermination . | . . . Reinforcement 1 | . 1 . Assault . | . . . Garrison . | . . . Intercept . | . . . Searches Triggered . | . . . Construction Impeded . | . . . Haulers Reinforced . | . . . Active Scanning Responses . | . . . Cargo Convoy Interrupts . | . . . Stealth | -11 -10 -10 --------- Run | Yrd Mat Min Distress Signals . | . . . Communications Jammed . | . . . Distress Signals . | . . . Times Spotted 45 | . 21 24 Peak Tracking Total 6 | . 4 6 Tactical Retreats 2 | . 2 . Traps | -11 -10 -10 ------- Run | Yrd Mat Min Traps Triggered . | . . . Indirectly . | . . . Trap Hack Attempts . | . . . Triggered . | . . . Disarmed 1 | . 1 . Reprogrammed . | . . . Reused . | . . . Traps Extracted . | . . . Installed . | . . . Triggered . | . . . Machines | -11 -10 -10 ---------- Run | Yrd Mat Min Machines Disabled . | . . . Max in Single Turn . | . . . Machines Repaired . | . . . Machines Dismantled . | . . . Machines Sabotaged . | . . . Overloaded Fab Kills . | . . . Hacking | -11 -10 -10 --------- Run | Yrd Mat Min Machines Accessed 4 | . 4 . Terminals 4 | . 4 . Fabricators . | . . . Repair Stations . | . . . Recycling Units . | . . . Scanalyzers . | . . . Garrison Access . | . . . Total Hacks 12 | . 12 . Successful 4 | . 4 . Failed 8 | . 8 . Catastrophic 1 | . 1 . Database Lockouts . | . . . Manual 6 | . 6 . Terminals 12 | . 12 . Fabricators . | . . . Repair Stations . | . . . Recycling Units . | . . . Scanalyzers . | . . . Garrison Access . | . . . Terminal Hacks 3 | . 3 . Locate Traps 2 | . 2 . Disarm Traps 1 | . 1 . Fabricator Hacks . | . . . Repair Station Hacks . | . . . Recycling Unit Hacks . | . . . Scanalyzer . | . . . Garrison Access Hacks . | . . . Unauthorized Hacks 1 | . 1 . Terminals 1 | . 1 . Botnet 1 | . 1 . Fabricators . | . . . Repair Stations . | . . . Recycling Units . | . . . Scanalyzers . | . . . Garrison Access . | . . . Data Cores Recovered . | . . . Used . | . . . Hacking Detections 4 | . 4 . Full Trace Events 1 | . 1 . Feedback Events 1 | . 1 . Corruption 1 | . 1 . Feedback Blocked . | . . . Robot Schematics Acquired . | . . . Robots Built . | . . . Authchips . | . . . Time . | . . . Total Robot Build Rating . | . . . Part Schematics Acquired . | . . . Parts Built . | . . . Authchips . | . . . Time . | . . . Total Part Build Rating . | . . . Parts Repaired . | . . . Time . | . . . Parts Recycled . | . . . Recycled Matter . | . . . Retrieved Matter . | . . . Retrieved Components . | . . . Parts Scanalyzed . | . . . Part Schematics Acquired . | . . . Parts Damaged . | . . . Bothacking | -11 -10 -10 ------------ Run | Yrd Mat Min Used RIF Installer . | . . . Robots Hacked . | . . . Non-combat . | . . . Combat . | . . . Robot Hacks Applied . | . . . Relay Couplers Released . | . . . Fabnet Peak Effective % . | . . . Robots Rewired . | . . . Allies Hacked . | . . . Hacks Repelled . | . . . Allies | -11 -10 -10 -------- Run | Yrd Mat Min Total Allies 1 | . . 1 Largest Group 1 | . . 1 Highest-Rated Group 31 | . . 31 Highest-Rated Ally 31 | . . 31 Total Orders . | . . . Ally Attacks 13 | . . 13 Total Damage 163 | . . 163 Kills 5 | . . 5 Allies Corrupted . | . . . Allies Melted . | . . . Intel | -11 -10 -10 ------- Run | Yrd Mat Min Robot Analysis Total . | . . . Derelict Logs Recovered . | . . . Drone Launches . | . . . Drone Recoveries . | . . . Exploration | -11 -10 -10 ------------- Run | Yrd Mat Min Turns Passed 975 | 79 806 90 Spaces Moved 723 | 58 640 25 Core 17 | 17 . . Treads 17 | . 14 3 Legs 53 | 41 12 . Wheels 636 | . 614 22 Hover . | . . . Flight . | . . . Fastest Speed 50 | 50 95 95 Average Speed 100 | 110 99 102 Slowest Speed 240 | 120 240 160 Overloaded Moves . | . . . Propulsion Burnouts . | . . . Robots Hopped . | . . . Cave-ins Triggered . | . . . Exploration Rate (%) 35 | 5 95 7 Regions Visited 2 Branch Regions 1 Pre-discovered Areas 1 | . . 1 Known Exits Taken . | . . . Unknown Exits Taken 2 | 1 1 . Scrap Searched . | . . . Spaces Dug 9 | . . 9 Terrain Destroyed 78 | . . 78 Melee . | . . . Projectile . | . . . AOE 78 | . . 78 Terrain Rammed . | . . . Walls Destroyed . | . . . Machines Disabled . | . . . Actions | -11 -10 -10 --------- Run | Yrd Mat Min Total 860 | 71 729 60 Wait 23 | . 21 2 Move 721 | 57 639 25 Hop . | . . . Pick Up 20 | 8 12 . Fast Attach 7 | 4 3 . Attach 6 | 2 . 4 Detach 2 | . 2 . Swap 12 | . 6 6 Drop 7 | . 5 2 Fire 62 | . 41 21 Melee . | . . . Ram . | . . . Kick . | . . . Crush . | . . . Escape Stasis . | . . . Rewire . | . . . Trap . | . . . Miscellaneous . | . . . Route ------- -11/Scrapyard -10/Materials (discovered 4 exits: [*Mat x3] / [*Min]) -10/Mines History --------- Turn | Location | Event 6 | -11/Scrapyard | Discovered new exit (range 16) 80 | -11/Scrapyard | Entered Materials 165 | -10/Materials | Discovered new exit (range 16) 300 | -10/Materials | Build established: Mutant 620 | -10/Materials | Discovered new exit (range 12) 807 | -10/Materials | Discovered new exit (range 16) 880 | -10/Materials | Discovered new exit (range 5) 886 | -10/Materials | Entered Mines 887 | -10/Mines | Assembled infested the area 895 | -10/Mines | Escorted by a lone wolf Derelict 915 | -10/Mines | Learned location of Storage (-8) 949 | -10/Mines | Core integrity fell below 50% 958 | -10/Mines | Core integrity fell below 20% 964 | -10/Mines | Destroyed 14 combat bots 976 | -10/Mines | Destroyed by as-44878 with Assembled Heavy Rifle Last Messages --------------- 00935_ as-37547 destroyed. 00935_ Destroyed Asb. F-torch. 00937_ as-16755 destroyed. 00940_ Wheel destroyed. 00940_ NM-LU1(g): "Mission, incomplete...*fzzt*" 00940_ NM-LU1(g) destroyed. 00941_ as-86687 destroyed. 00943_ The unstable cave ceiling collapses. 00943_ Wheel destroyed. 00943_ D-53 Grenadier destroyed. 00944_ The unstable cave ceiling collapses. 00944_ Ion Engine destroyed. 00944_ Particle Gun destroyed. 00946_ The unstable cave ceiling collapses. 00959_ Imp. Heat Sink destroyed. 00960_ D-53 Grenadier destroyed. 00961_ The unstable cave ceiling collapses. 00972_ Lgt. Treads destroyed. 00974_ as-16883 destroyed. 00975_ The unstable cave ceiling collapses. Map ----- +----------------------------------------------------+ | ?????????????????????????????????????????????????? | | ?????????????????????????????????????????????????? | | ?????????????????????????????????????????????????? | | ?????????????????????????????????????????????????? | | ?????????????????????????????????????????????????? | | ?????????????????????????????????????????????????? | | ?????????????????????????????????????????????????? | | ?????????????????????????????????????????????????? | | ??????????????????????????? ???????????????????? | | ??????????????????????? ### ??????????????????? | | ??????????????????????# # ###????????????????? | | ??????????????????????# # ###??????????????? | | ??????????????????????? # ###????????????? | | ??????????????????????? ###????????????? | | ???????????????????????# % ####?????????? | | ???????????????????????? # #?????????? | | ???????????????????????? ! ??????????? | | ???????????????????????## #a] ???????????? | | ???????????????????????# # ???????????? | | ????????????????????#### ????????????? | | ????????????????????? #?????????????? | | ??????????????????????# ## # #?????????????? | | ?????????????????????## # #???????????????? | | ?????????????????????# #????????????????? | | ?????????????????????# #????????????????? | | ?????????????????????# @ #????????????????? | | ?????????????????????## ##????????????????? | | ?????????????????????# ##????????????????? | | ?????????????????????## # ##?????????????????? | | ??????????????????????# ####??????????????????? | | ??????????????????????## ###?????????????????????? | | ??????????????????????? ##???????????????????????? | | ??????????????????????##?????????????????????????? | | ?????????????????????????????????????????????????? | | ?????????????????????????????????????????????????? | | ?????????????????????????????????????????????????? | | ?????????????????????????????????????????????????? | | ?????????????????????????????????????????????????? | | ?????????????????????????????????????????????????? | | | | | | | | | | | | | | | | | | | | | | | +----------------------------------------------------+ Best States ------------- Heat Dissipation 39 Energy Generation 10 Energy Capacity 250 Matter Stores 300 Matter Capacity 300 Sight Range 16 Robot Scan Range 14 Terrain Scan Density 10 Evasion (%) 55 Recoil Reduction 2 Item Schematics ----------------- None Robot Schematics ------------------ None Fabricated ------------ Nothing Alien Tech Used ----------------- None Achievements -------------- None Challenges ------------ None Game ------ Seed HellfireCannonPlatform Manual? 0 Play Time 00:14:29 Cumulative 29.8 hours Start 2024.04.08 @ 18:40:01 End 2024.04.08 @ 19:03:01 Sessions 1 Manual Loads 0 Difficulty Rogue Special Mode None Game No. 25 Rogue 25 Adventurer 0 Explorer 0 Win Type - Total 1 Types 1/0/0/0/0/0/0/0/0 Lore% 24 Gallery% 35 Achievement% 33 Wizard Run 0 Options --------- Layout 0 ASCII 0 Keyboard 0 Movement Mouse Keybinds 0 Fullscreen 2 Font 20/SmallcapsGlow Map View 140x60 Zoom Use 0% Tactical HUD 1 Map Filters NONE Filters NONE Steam 1 RUN: a575a5a6-fd96-436d-8a2e-7ce7aa7798cd